bitfinex-derivatives/quotes_SOLF0:USTF0_20241008
["timestamp","ask_amount","ask_price","bid_price","bid_amount"]
[1728406555256,3.4806,143.73,143.7,3.4813]
[1728406555954,10.71,143.71,143.64,2.8387]
[1728406556153,14.1912,143.71,143.68,3.4817]
[1728406557255,10.71,143.71,143.68,3.4817]
[1728406557458,14.1914,143.7,143.68,3.4817]
[1728406558160,10.71,143.7,143.68,3.4817]
[1728406560573,3.60532,143.75,143.73,3.4805]
[1728406560867,0.12502,143.75,143.73,3.4805]
[1728406561660,0.12502,143.75,143.69,5.54]
[1728406561661,0.12502,143.75,143.71,10.71]
[1728406561861,0.12502,143.75,143.68,5.54]
[1728406561862,10.71,143.73,143.68,5.54]
[1728406562156,10.71,143.73,143.68,10.71]
[1728406562365,3.4811,143.71,143.68,3.4817]
[1728406562967,14.1911,143.72,143.68,3.4817]
[1728406563261,10.71,143.69,143.65,12.0442]
[1728406563464,10.71,143.68,143.63,0.12502]
[1728406563862,10.71,143.68,143.63,10.83502]
[1728406564064,10.71,143.68,143.65,3.4824]
[1728406564658,14.192,143.68,143.65,3.4824]
[1728406565258,3.4822,143.67,143.64,3.4827]
[1728406565463,10.71,143.68,143.63,0.12502]
[1728406565864,10.71,143.68,143.63,10.83502]
[1728406566166,3.4818,143.68,143.64,3.4826]
[1728406566359,3.4818,143.68,143.63,10.83502]
[1728406566360,16.25,143.71,143.66,10.71]
[1728406566567,5.54,143.71,143.68,10.71]
[1728406566868,1.4308,143.72,143.69,3.4815]
[1728406567059,10.71,143.73,143.69,3.4815]
[1728406567469,14.1911,143.72,143.68,14.1917]
[1728406567671,10.71,143.71,143.66,12.0815]
[1728406567871,10.71,143.71,143.66,1.3715]
[1728406568071,6.9899,143.74,143.66,1.3715]
[1728406568072,14.1916,143.69,143.66,3.4822]
[1728406568370,10.71,143.68,143.61,6.9115]
[1728406568571,14.19844807,143.68,143.63,3.60792]
[1728406569167,3.4821,143.67,143.63,3.60792]
[1728406569872,14.192,143.68,143.64,3.4826]
[1728406570072,10.71,143.68,143.64,3.4826]
[1728406571570,10.71,143.66,143.63,0.12502]
[1728406571772,10.71,143.66,143.63,10.83502]
[1728406571965,10.71,143.66,143.63,14.31792]
[1728406572571,10.71,143.66,143.63,0.12502]
[1728406572765,10.71,143.65,143.63,0.12502]
[1728406572971,16.25,143.64,143.52,6.9714]
[1728406573276,3.4837,143.61,143.58,3.4842]
[1728406573874,3.4831,143.63,143.59,3.4838]
[1728406574177,10.71,143.63,143.57,10.83502]
[1728406574374,8.97041959,143.64,143.57,14.31942]
[1728406574375,3.4837,143.61,143.57,14.31942]
[1728406574675,3.4837,143.61,143.57,10.83502]
[1728406574863,10.71,143.62,143.57,10.83502]
[1728406575065,3.4835,143.61,143.58,3.4841]
[1728406575265,10.71,143.6,143.57,0.12502]
[1728406575468,3.4842,143.59,143.57,0.12502]
[1728406575670,10.71,143.59,143.57,0.12502]
[1728406576072,14.1942,143.59,143.57,0.12502]
[1728406576266,10.71,143.59,143.57,0.12502]
[1728406576863,14.1942,143.58,143.57,0.12502]
[1728406577573,14.1942,143.58,143.53,3.4854]
[1728406577574,3.4846,143.57,143.53,3.4854]
[1728406577975,10.71,143.58,143.52,12.134]
[1728406578177,14.1948,143.56,143.52,15.6195]
[1728406579278,10.71,143.56,143.53,3.4854]
[1728406579583,10.71,143.58,143.52,12.134]
[1728406579976,14.1943,143.58,143.54,3.4851]
[1728406580280,3.4843,143.58,143.53,10.71]
[1728406580576,12.0819,143.59,143.53,10.71]
[1728406580777,16.25,143.61,143.56,10.71]
[1728406581181,16.25,143.61,143.58,3.4841]
[1728406581785,10.71,143.59,143.56,3.4845]
[1728406581980,10.71,143.59,143.53,5.54]
[1728406582180,10.71,143.59,143.53,16.25]
[1728406582571,10.71,143.58,143.53,16.25]
[1728406583082,14.1943,143.58,143.54,3.4851]
[1728406583279,5.54,143.61,143.53,16.25]
[1728406583584,10.71,143.58,143.55,3.4849]
[1728406584371,10.71,143.57,143.54,3.4851]
[1728406585175,10.71,143.57,143.53,5.54]
[1728406585376,10.71,143.57,143.55,3.4849]
[1728406585579,10.71,143.58,143.53,16.25]
[1728406585778,10.71,143.59,143.56,3.4846]
[1728406586079,10.71,143.58,143.53,10.71]
[1728406586587,14.1943,143.58,143.55,3.4849]
[1728406586777,10.71,143.58,143.55,3.4849]
[1728406588383,14.1941,143.59,143.55,3.4849]
[1728406590078,14.1941,143.59,143.53,10.71]
[1728406590582,3.4839,143.6,143.55,10.71]
[1728406590783,14.1939,143.6,143.56,3.4846]
[1728406591682,10.71,143.6,143.58,3.4841]
[1728406592381,10.71,143.61,143.56,10.71]
[1728406592587,10.71,143.62,143.59,3.4838]
[1728406593282,5.66502,143.63,143.6,3.4836]
[1728406593283,9.14812,143.63,143.6,3.4836]
[1728406593487,10.71,143.62,143.6,3.4836]
[1728406593990,14.1933,143.62,143.59,3.4839]
[1728406596087,10.71,143.6,143.57,3.4844]
[1728406597288,10.71,143.6,143.56,5.54]
[1728406597289,10.71,143.6,143.58,3.4842]
[1728406600095,14.1935,143.61,143.58,3.4842]
[1728406600284,14.1935,143.61,143.56,16.25]
[1728406600285,10.71,143.61,143.56,16.25]
[1728406600489,10.71,143.61,143.59,3.4839]
[1728406602295,14.1935,143.61,143.58,3.4842]
[1728406609403,14.1935,143.61,143.59,3.484]
[1728406611200,10.71,143.61,143.59,3.484]
[1728406616305,3.484,143.59,143.56,3.4845]
[1728406618607,14.194,143.59,143.56,3.4845]
[1728406620714,14.194,143.59,143.54,1.4225]
[1728406620913,10.71,143.61,143.56,10.71]
[1728406621317,10.71,143.62,143.57,10.71]
[1728406621614,10.71,143.62,143.6,3.4836]
[1728406622609,10.71,143.62,143.57,10.71]
[1728406622813,0.12502,143.63,143.59,10.71]
[1728406623215,14.31812,143.63,143.6,3.4836]
[1728406623615,10.83502,143.63,143.59,10.71]
[1728406624017,10.83502,143.63,143.6,3.4837]
[1728406625815,14.31802,143.63,143.6,3.4837]
[1728406626313,0.12502,143.63,143.61,3.4833]
[1728406626512,0.12502,143.63,143.58,1.3641]
[1728406626711,0.12502,143.63,143.6,1.3645]
[1728406626908,10.71,143.62,143.58,6.9041]
[1728406627615,14.1935,143.62,143.59,3.484]
[1728406627816,10.71,143.6,143.55,10.71]
[1728406628021,10.71,143.59,143.57,3.4843]
[1728406628817,14.194,143.59,143.57,3.4843]
[1728406629016,10.71,143.59,143.57,3.4843]
[1728406629213,10.71,143.59,143.55,16.25]
[1728406629420,10.71,143.6,143.58,3.4842]
[1728406630811,14.1938,143.6,143.58,3.4842]
[1728406632815,14.1938,143.6,143.55,5.54]
[1728406633122,14.1938,143.6,143.57,3.4844]
[1728406634025,10.71,143.59,143.57,3.4844]
[1728406634921,10.71,143.58,143.53,1.4269]
[1728406635221,10.71,143.59,143.54,10.71]
[1728406635422,5.54,143.6,143.54,10.71]
[1728406635617,10.71,143.59,143.54,10.71]
[1728406635817,10.71,143.61,143.56,10.71]
[1728406636211,14.31812,143.63,143.6,3.4838]
[1728406636419,14.31812,143.63,143.58,10.71]
[1728406636420,10.83502,143.63,143.58,10.71]
[1728406637524,10.83502,143.63,143.6,3.4836]
[1728406638025,14.31812,143.63,143.6,3.4836]
[1728406638526,14.31812,143.63,143.61,3.4835]
[1728406638915,10.83502,143.63,143.61,3.4835]
[1728406639320,0.12502,143.63,143.58,12.0974]
[1728406639516,0.12502,143.63,143.6,10.71]
[1728406639924,0.12502,143.63,143.62,3.4833]
[1728406641221,1e-08,143.63,143.62,14.1933]
[1728406641827,1e-08,143.63,143.62,3.4833]
[1728406642130,1e-08,143.63,143.61,3.4834]
[1728406644334,1e-08,143.63,143.6,9.0036]
[1728406644335,14.19300001,143.63,143.6,9.0036]
[1728406644624,14.19300001,143.63,143.6,3.4836]
[1728406646319,14.19300001,143.63,143.58,20.3678]
[1728406646637,14.19300001,143.63,143.61,3.4835]
[1728406648934,14.19300001,143.63,143.58,20.3678]
[1728406649136,14.19300001,143.63,143.6,3.4836]
[1728406650925,14.19300001,143.63,143.58,14.8478]
[1728406651128,14.19300001,143.63,143.61,3.4835]
[1728406654331,14.19300001,143.63,143.6,3.4837]
[1728406654528,14.19300001,143.63,143.58,14.8478]
[1728406655642,14.19300001,143.63,143.61,3.4835]
[1728406656730,1e-08,143.63,143.6,10.71]
[1728406656937,1e-08,143.63,143.62,3.4833]
[1728406657143,1e-08,143.63,143.59,10.71]
[1728406657644,1e-08,143.63,143.61,3.4834]
[1728406662745,3.48320001,143.63,143.6,3.4836]
[1728406663043,1e-08,143.63,143.58,8.3053]
[1728406663245,14.1937,143.61,143.58,3.4842]
[1728406663546,10.71,143.59,143.57,0.12501999]
[1728406664638,14.1941,143.59,143.57,0.12501999]
[1728406665141,10.71,143.59,143.57,0.12501999]
[1728406665350,3.4842,143.58,143.57,0.12501999]
[1728406668541,14.1942,143.58,143.57,0.12501999]
[1728406671550,3.4842,143.58,143.57,0.12501999]
[1728406671742,14.1942,143.58,143.57,0.12501999]
[1728406676238,3.5535096,143.62,143.57,0.12501999]
[1728406676443,3.5535096,143.62,143.59,3.4839]
[1728406676444,10.71,143.61,143.59,3.4839]
[1728406677148,16.23,143.62,143.6,3.4836]
[1728406678552,10.71,143.62,143.6,3.4836]
[1728406678757,10.71,143.62,143.58,10.71]
[1728406678952,10.71,143.62,143.57,10.83501999]
[1728406679157,10.71,143.61,143.57,0.12501999]
[1728406679955,10.71,143.61,143.59,3.484]
[1728406680569,1e-08,143.63,143.57,10.83501999]
[1728406680858,1e-08,143.63,143.58,10.71]
[1728406681059,1e-08,143.63,143.59,10.71]
[1728406681654,1e-08,143.63,143.62,3.4833]
[1728406683263,10.71000001,143.63,143.62,3.4833]
[1728406685062,1e-08,143.63,143.62,14.1933]
[1728406685852,1e-08,143.63,143.62,3.4833]
[1728406688964,15.29042,143.69,143.62,10.71]
[1728406688965,0.12502,143.69,143.62,10.71]
[1728406689259,0.12502,143.69,143.68,3.4818]
[1728406689467,7.10402,143.69,143.67,5.52]
[1728406689960,7.10402,143.69,143.68,3.4818]
[1728406690770,0.12502,143.69,143.68,3.4818]
[1728406691355,0.12502,143.69,143.68,14.1918]
[1728406696457,10.71,143.74,143.72,3.4808]
[1728406698067,0.12502,143.75,143.73,3.4804]
[1728406698276,0.12502,143.75,143.72,10.71]
[1728406699470,0.12502,143.75,143.74,3.4804]
[1728406701466,1e-08,143.75,143.74,14.1904]
[1728406702461,0.12502,143.81,143.8,3.4789]
[1728406704072,0.12502,143.81,143.8,14.1889]
[1728406705079,0.12502,143.81,143.8,3.4789]
[1728406708075,0.12502,143.81,143.79,3.479]
[1728406708278,10.83502,143.81,143.76,12.0327]
[1728406708583,10.83502,143.81,143.77,5.5]
[1728406708876,14.31382,143.81,143.77,16.21]
[1728406709379,0.12502,143.81,143.78,10.71]
[1728406710579,0.12502,143.81,143.8,3.4789]
[1728406713083,0.12502,143.81,143.77,5.5]
[1728406713280,0.12502,143.81,143.79,10.71]
[1728406713971,0.12502,143.81,143.8,3.4789]
[1728406716585,0.12502,143.81,143.79,10.71]
[1728406716786,0.12502,143.81,143.79,3.4791]
[1728406717284,0.12502,143.81,143.77,5.5]
[1728406717989,3.60382,143.81,143.78,3.4793]
[1728406718977,0.12502,143.81,143.76,16.21]
[1728406719288,3.4789,143.8,143.77,3.4795]
[1728406719474,10.71,143.79,143.76,5.5]
[1728406720179,14.1893,143.79,143.76,3.4797]
[1728406720380,10.71,143.79,143.75,1.3171]
[1728406720678,14.1896,143.78,143.75,4.797]
[1728406721277,3.4796,143.78,143.75,4.797]
[1728406722076,3.4796,143.78,143.76,3.4799]
[1728406723187,3.4796,143.78,143.74,10.71]
[1728406723389,3.4796,143.78,143.75,3.48]
[1728406725880,3.4796,143.78,143.75,3.48]
[1728406726282,3.4796,143.78,143.74,10.71]
[1728406726484,3.4796,143.78,143.76,3.4798]
[1728406727387,0.12502,143.81,143.73,5.5]
[1728406727388,0.12502,143.81,143.77,10.71]
[1728406727588,0.12502,143.81,143.8,3.4789]
[1728406728694,0.12502,143.81,143.8,14.1889]
[1728406730092,0.12502,143.81,143.49,25.34120003]
[1728406730294,0.12502,143.81,143.78,3.4793]
[1728406730295,3.60382,143.81,143.78,3.4793]
[1728406730687,0.12502,143.81,143.8,3.4789]
[1728406735091,0.12502,143.81,143.8,14.1889]
[1728406739202,0.12502,143.81,143.8,3.4789]
[1728406739403,0.12502,143.81,143.8,14.1889]
[1728406740797,0.12502,143.81,143.8,3.4789]
[1728406741106,0.12502,143.81,143.8,14.1889]
[1728406745505,0.12502,143.81,143.8,15.5694]
[1728406746208,5.62502,143.87,143.8,15.5694]
[1728406746209,0.12502,143.87,143.8,15.59941816]
[1728406746407,0.12502,143.87,143.85,10.71]
[1728406747011,0.12502,143.87,143.83,10.71]
[1728406747711,14.31232,143.87,143.83,10.71]
[1728406749917,10.83502,143.87,143.84,3.4779]
[1728406750216,10.83502,143.87,143.82,10.71]
[1728406750605,10.83502,143.87,143.8,4.085]
[1728406750606,10.71,143.86,143.81,10.71]
[1728406750813,14.1876,143.86,143.81,10.71]
[1728406751412,3.4776,143.86,143.82,10.71]
[1728406751619,14.31242,143.87,143.82,10.71]
[1728406751809,14.31242,143.87,143.84,3.4778]
[1728406752001,10.83502,143.87,143.84,3.4778]
[1728406752608,3.4776,143.86,143.84,3.4778]
[1728406752805,10.83502,143.87,143.84,3.4778]
[1728406753209,14.31242,143.87,143.84,3.4778]
[1728406756016,0.12502,143.87,143.83,10.71]
[1728406756312,0.12502,143.87,143.86,3.4775]
[1728406756618,0.12502,143.87,143.86,14.1875]
[1728406756913,0.12518,143.88,143.87,3.4772]
[1728406757114,3.60092,143.93,143.87,10.71]
[1728406757318,1.27838999,143.92,143.9,3.4765]
[1728406758214,1.27838999,143.92,143.89,3.4767]
[1728406758417,10.71,143.9,143.86,16.21]
[1728406758812,10.71,143.9,143.88,3.4768]
[1728406759011,3.4765,143.91,143.88,3.4768]
[1728406759313,3.4765,143.91,143.87,10.71]
[1728406759621,3.4765,143.91,143.88,3.4769]
[1728406763811,14.1865,143.91,143.88,3.4769]
[1728406764015,3.4765,143.9,143.88,3.4769]
[1728406764211,10.71,143.89,143.87,3.4771]
[1728406764721,14.1868,143.89,143.87,3.4771]
[1728406765431,10.71,143.89,143.84,1.4094]
[1728406765621,14.1871,143.88,143.86,3.4774]
[1728406766324,14.1871,143.88,143.85,3.4776]
[1728406766636,0.12502,143.93,143.83,108.26275615]
[1728406766831,10.71,143.91,143.86,10.71]
[1728406767127,14.1864,143.91,143.89,3.4767]
[1728406767329,14.1864,143.91,143.86,10.71]
[1728406768023,3.4765,143.9,143.88,3.477]
[1728406769825,10.71,143.91,143.86,10.71]
[1728406770024,3.4769,143.89,143.84,10.71]
[1728406770435,3.4769,143.89,143.86,3.4773]
[1728406771033,10.71,143.88,143.86,3.4773]
[1728406771329,14.1871,143.88,143.85,3.4775]
[1728406772430,10.71,143.88,143.86,3.4773]
[1728406772623,10.71,143.88,143.83,102.78275615]
[1728406773435,14.1871,143.88,143.83,102.78275615]
[1728406773631,10.71,143.88,143.83,102.78275615]
[1728406774428,3.4774,143.87,143.85,3.4775]
[1728406778338,14.1874,143.87,143.84,3.4778]
[1728406778534,3.4777,143.85,143.82,1.4378]
[1728406778831,10.71,143.86,143.82,4.9161]
[1728406779033,1.3418,143.89,143.72,10.71]
[1728406779034,10.71,143.83,143.72,10.71]
[1728406779234,10.71,143.77,143.72,10.71]
[1728406779625,5.48,143.78,143.7,3.49994052]
[1728406779626,8.9595,143.78,143.73,10.71]
[1728406779832,19.6695,143.78,143.73,10.71]
[1728406781542,19.6695,143.78,143.75,3.60512]
[1728406782738,5.48,143.78,143.75,3.60512]
[1728406784034,5.48,143.8,143.76,10.71]
[1728406784436,5.48,143.8,143.77,3.4795]
[1728406784632,16.19,143.8,143.77,3.4795]
[1728406785039,19.669,143.8,143.77,3.4795]
[1728406790551,1.0,143.84,143.79,10.71]
[1728406790749,17.19,143.84,143.79,10.71]
[1728406790948,10.71,143.82,143.78,10.71]
[1728406791446,10.71,143.8,143.76,5.48]
[1728406792147,10.71,143.8,143.75,10.83502]
[1728406793147,10.71,143.81,143.79,3.4792]
[1728406794043,14.1887,143.81,143.77,10.71]
[1728406794247,10.71,143.8,143.75,16.31502]
[1728406795052,10.71,143.8,143.76,10.71]
[1728406795653,14.1888,143.81,143.79,3.4791]
[1728406795854,3.4788,143.81,143.79,3.4791]
[1728406797050,3.4788,143.81,143.76,10.71]
[1728406797249,14.189,143.8,143.76,10.71]
[1728406797554,14.189,143.8,143.75,10.83502]
[1728406797749,14.189,143.8,143.76,3.4798]
[1728406798051,14.189,143.8,143.75,10.83502]
[1728406799151,14.189,143.8,143.78,3.4792]
[1728406799355,14.1891,143.8,143.78,3.4792]
[1728406799847,10.71,143.8,143.78,3.4792]
[1728406800055,6.48,143.84,143.76,10.71]
[1728406800241,10.71,143.82,143.8,3.4789]
[1728406800441,14.1882,143.83,143.78,10.71]
[1728406800653,5.48,143.85,143.79,10.71]
[1728406800852,16.19,143.85,143.82,3.4783]
[1728406801052,3.478,143.84,143.82,3.4783]
[1728406801250,10.71,143.83,143.75,7.08512]
[1728406801552,10.71,143.83,143.81,3.4786]
[1728406801746,10.71,143.82,143.78,10.71]
[1728406802248,14.1885,143.82,143.78,10.71]
[1728406802550,10.71,143.82,143.78,10.71]
[1728406803550,10.71,143.82,143.81,3.4787]
[1728406803748,10.71,143.82,143.75,0.12502]
[1728406803944,10.71,143.8,143.75,10.83502]
[1728406805043,14.1889,143.8,143.78,3.4793]
[1728406806157,10.71,143.8,143.78,3.4793]
[1728406806856,3.4788,143.81,143.78,3.4793]
[1728406807050,3.4794,143.78,143.76,3.4797]
[1728406807254,10.71,143.77,143.75,0.12502]
[1728406807553,14.1899,143.76,143.75,0.12502]
[1728406807755,10.71,143.77,143.75,0.12502]
[1728406807949,5.48,143.78,143.75,0.12502]
[1728406808856,5.48,143.78,143.76,3.4799]
[1728406809056,10.71,143.77,143.75,0.12502]
[1728406809255,10.71,143.76,143.75,0.12502]
[1728406809456,14.1899,143.76,143.75,0.12502]
[1728406810655,10.71,143.76,143.75,0.12502]
[1728406810849,5.48,143.76,143.75,0.12502]
[1728406811255,1.3478,143.82,143.75,10.83502]
[1728406811256,5.48,143.8,143.75,10.83502]
[1728406811460,16.19,143.8,143.75,10.83502]
[1728406812053,14.1892,143.79,143.76,3.4798]
[1728406812255,10.71,143.78,143.76,3.4798]
[1728406812964,10.71,143.79,143.77,3.4795]
[1728406813459,5.48,143.8,143.75,0.12502]
[1728406813761,5.48,143.8,143.79,3.4792]
[1728406813963,14.1888,143.81,143.79,3.4792]
[1728406814157,16.19,143.81,143.79,3.4792]
[1728406814353,16.19,143.82,143.8,3.4789]
[1728406815267,16.19,143.82,143.79,3.479]
[1728406815667,10.71,143.81,143.76,2.7805]
[1728406815966,16.19,143.82,143.8,3.4787]
[1728406816165,10.71,143.83,143.77,10.71]
[1728406816368,16.19,143.83,143.79,10.71]
[1728406817162,16.19,143.83,143.82,3.4784]
[1728406817556,16.19,143.83,143.79,10.71]
[1728406817755,16.19,143.83,143.81,3.4785]
[1728406818864,10.71,143.82,143.81,3.4785]
[1728406821060,10.71,143.82,143.77,10.71]
[1728406821262,10.71,143.82,143.8,3.4788]
[1728406821472,8.9583,143.83,143.77,10.71]
[1728406821473,5.48,143.83,143.77,10.71]
[1728406821669,16.19,143.83,143.81,3.4786]
[1728406822370,16.19,143.83,143.82,3.4784]
[1728406822672,10.71,143.83,143.82,3.4784]
[1728406823562,5.48,143.85,143.83,3.478]
[1728406823870,10.71,143.84,143.83,3.478]
[1728406824073,0.12502,143.87,143.86,3.4775]
[1728406826270,10.83502,143.87,143.83,3.478]
[1728406826470,10.71,143.84,143.83,3.478]
[1728406826669,10.71,143.86,143.81,10.71]
[1728406827676,10.71,143.86,143.84,3.4778]
[1728406832477,10.71,143.86,143.81,10.71]
[1728406832684,10.83502,143.87,143.82,10.71]
[1728406833075,10.83502,143.87,143.82,16.19]
[1728406833275,10.83502,143.87,143.85,3.4776]
[1728406833876,0.12502,143.87,143.86,3.4775]
[1728406842188,0.12502,143.87,143.86,14.1875]
[1728406844488,0.12502,143.87,143.86,8.9575]
[1728406845389,0.12502,143.87,143.86,3.4775]
[1728406850392,0.12502,143.87,143.86,14.1875]
[1728406856094,0.12502,143.87,143.86,3.4775]
[1728406856981,0.12502,143.87,143.81,1.3391]
[1728406857182,0.12502,143.87,143.83,10.71]
[1728406857591,0.12502,143.87,143.85,3.4775]
[1728406857788,0.12502,143.87,143.83,10.71]
[1728406858899,0.12502,143.87,143.84,10.71]
[1728406859396,0.12502,143.87,143.86,3.4775]
[1728406860193,10.83502,143.87,143.83,10.71]
[1728406860496,0.12502,143.87,143.84,10.71]
[1728406861088,0.12502,143.87,143.86,14.1875]
[1728406861489,0.12502,143.87,143.86,19.6475]
[1728406861685,5.60502,143.93,143.91,3.4762]
[1728406862295,5.60502,143.93,143.92,3.476]
[1728406863699,14.31092,143.93,143.9,3.4764]
[1728406865696,14.31092,143.93,143.87,10.71]
[1728406866398,0.12502,143.93,143.92,3.476]
[1728406867999,10.83502,143.93,143.92,3.476]
[1728406868704,0.12502,143.93,143.92,3.476]
[1728406869401,3.60082,143.93,143.91,3.4761]
[1728406870402,0.12502,143.93,143.91,3.4761]
[1728406871498,3.60082,143.93,143.91,3.4761]
[1728406872200,0.12502,143.93,143.88,10.71]
[1728406873000,0.12502,143.93,143.91,3.4761]
[1728406873202,0.12502,143.93,143.88,10.71]
[1728406873806,0.12502,143.93,143.91,3.4761]
[1728406874802,10.83502,143.93,143.91,3.4761]
[1728406876402,10.83502,143.93,143.92,3.476]
[1728406876901,0.12502,143.93,143.92,3.476]
[1728406880714,0.12502,143.93,143.89,1.3231]
[1728406880905,10.83502,143.93,143.91,3.4762]
[1728406881712,14.31082,143.93,143.91,3.4762]
[1728406881913,14.31082,143.93,143.9,3.4763]
[1728406882500,14.31082,143.93,143.88,1.3494]
[1728406882501,10.71,143.92,143.88,1.3494]
[1728406882708,10.71,143.9,143.86,5.46]
[1728406883208,14.1866,143.9,143.87,3.4771]
[1728406884608,10.71,143.89,143.84,1.376]
[1728406884917,3.4773,143.87,143.85,3.4776]
[1728406885110,10.71,143.88,143.85,3.4776]
[1728406885809,14.1871,143.88,143.85,3.4776]
[1728406887020,10.71,143.86,143.82,8.298]
[1728406887217,10.71,143.86,143.82,6.8859]
[1728406887415,10.71,143.86,143.84,3.4778]
[1728406888117,10.71,143.87,143.85,3.4777]
[1728406888321,10.71,143.88,143.84,10.71]
[1728406889023,10.71,143.88,143.87,3.4772]
[1728406893617,10.71,143.88,143.82,6.8859]
[1728406893923,14.187,143.88,143.83,10.71]
[1728406894632,14.187,143.88,143.84,3.4778]
[1728406894929,14.187,143.88,143.83,10.71]
[1728406895231,3.4775,143.86,143.82,12.1359]
[1728406895523,3.4775,143.86,143.82,17.5959]
[1728406895729,3.4775,143.86,143.83,3.4781]
[1728406896025,3.4775,143.86,143.82,12.1359]
[1728406896833,3.477,143.88,143.83,10.71]
[1728406897120,3.477,143.88,143.82,1.4259]
[1728406897121,10.71,143.89,143.88,3.477]
[1728406897322,10.71,143.89,143.82,1.4259]
[1728406897528,10.71,143.89,143.84,10.71]
[1728406897720,10.71,143.89,143.87,3.4771]
[1728406897921,14.1868,143.89,143.87,3.4771]
[1728406898533,10.71,143.88,143.87,3.4771]
[1728406899227,14.1872,143.88,143.83,5.46]
[1728406899432,10.71,143.88,143.83,5.46]
[1728406899929,14.1871,143.88,143.86,3.4775]
[1728406900127,5.46,143.9,143.85,10.71]
[1728406900434,10.71,143.89,143.85,10.71]
[1728406900633,5.46,143.9,143.85,10.71]
[1728406901125,5.46,143.9,143.86,10.71]
[1728406901631,5.46,143.9,143.88,3.4769]
[1728406902936,10.71,143.89,143.88,3.4769]
[1728406907231,10.71,143.89,143.87,3.4771]
[1728406908128,10.71,143.88,143.87,3.4771]
[1728406908329,10.71,143.88,143.82,1.4259]
[1728406908527,10.71,143.85,143.82,1.4259]
[1728406908929,10.71,143.85,143.84,3.4779]
[1728406910537,14.1873,143.87,143.82,1.4259]
[1728406911130,10.71,143.86,143.84,3.4777]
[1728406911736,3.4773,143.87,143.84,3.4777]
[1728406911931,14.1873,143.87,143.83,10.71]
[1728406912137,10.71,143.88,143.86,3.4773]
[1728406914539,14.1872,143.87,143.82,12.1359]
[1728406915338,14.1872,143.87,143.85,3.4777]
[1728406915539,14.1872,143.87,143.82,1.4259]
[1728406915744,3.4776,143.86,143.82,1.4259]
[1728406915934,3.4776,143.86,143.83,3.478]
[1728406916134,14.188,143.84,143.82,1.4259]
[1728406916833,3.478,143.84,143.81,0.12502]
[1728406917038,14.188,143.84,143.81,0.12502]
[1728406917237,14.188,143.84,143.82,3.4784]
[1728406918934,3.4783,143.83,143.81,3.60362]
[1728406919244,10.71,143.82,143.81,3.60362]
[1728406921242,10.71,143.82,143.81,0.12502]
[1728406922743,14.1884,143.82,143.81,0.12502]
[1728406923939,10.71,143.82,143.75,0.12502]
[1728406924153,10.71,143.76,143.75,0.12502]